fUST/lending_fUST_20250226
["ID","MTS","AMOUNT","RATE_DAILY","PERIOD"]
[354543924,1740565832229,-151.0,0.00044022,30]
[354543925,1740565832239,-18122.64028846,0.00044022,2]
[354543926,1740565832248,-172.83260592,0.00044971,2]
[354543927,1740565832257,-166.1,0.00045391,30]
[354543929,1740565832267,-197.542416,0.00045609,2]
[354543930,1740565832275,-151.0,0.000459,21]
[354543931,1740565832285,-154.63,0.000466,2]
[354543932,1740565832294,-182.71,0.0004676,30]
[354543933,1740565832303,-1397.2029364,0.00047527,2]
[354543934,1740565832312,-200.981,0.00048129,30]
[354543935,1740565832322,-151.0,0.000488,30]
[354543936,1740565832331,-1011.37,0.000488,45]
[354543937,1740565832340,-1011.37,0.000488,45]
[354543938,1740565832349,-1011.37,0.000488,45]
[354543939,1740565832359,-1011.37,0.000488,45]
[354543940,1740565832368,-1011.37,0.000488,45]
[354543941,1740565832378,-1011.37,0.000488,45]
[354543942,1740565832387,-1011.37,0.000488,45]
[354543943,1740565832396,-1011.37,0.000488,45]
[354543944,1740565832406,-1011.37,0.000488,45]
[354543945,1740565832416,-1011.37,0.000488,45]
[354543946,1740565832425,-1011.37,0.000488,45]
[354543947,1740565832435,-1011.37,0.000488,45]
[354543948,1740565832445,-221.0791,0.00049498,30]
[354543949,1740565832454,-302.0,0.00050867,30]
[354543950,1740565832464,-151.0,0.000518,23]
[354543951,1740565832474,-153.0,0.00051961,30]
[354543952,1740565832484,-557.5803526,0.00051961,30]
[354543953,1740565832494,-557.5803526,0.00051961,30]
[354543954,1740565832503,-557.5803526,0.00051961,30]
[354543955,1740565832512,-303.081391,0.00051961,30]
[354543956,1740565832522,-179.62279214,0.00051961,44]
[354543957,1740565832531,-500.19278031,0.00052,120]
[354543958,1740565832540,-500.0,0.0005216,10]
[354543959,1740565832549,-500.0,0.0005216,7]
[354543960,1740565832561,-1000.0,0.00052708,7]
[354543961,1740565832574,-237.64,0.000528,30]
[354543962,1740565832583,-7461.6,0.000529,30]
[354543963,1740565832593,-500.0,0.000529,10]
[354543964,1740565832603,-239.15891132,0.00052973,10]
[354543965,1740565832613,-500.0,0.00052999,31]
[354543966,1740565832622,-160.72076009,0.00052999,120]
[354543967,1740565832632,-500.0,0.00052999,120]
[354543968,1740565832645,-500.0,0.00052999,120]
[354543969,1740565832656,-177.28395782,0.00052999,31]
[354543970,1740565832665,-459.99602604,0.00052999,120]
[354543971,1740565832675,-500.0,0.00052999,31]
[354543972,1740565832686,-500.0,0.00052999,120]
[354543973,1740565832695,-500.0,0.00052999,31]
[354543974,1740565832705,-353.01583196,0.00052999,120]
[354543975,1740565832715,-500.0,0.00052999,31]
[354543976,1740565832725,-500.0,0.00052999,120]
[354543977,1740565832735,-500.0,0.00052999,120]
[354543978,1740565832745,-500.0,0.00052999,120]
[354543979,1740565832754,-500.0,0.00052999,120]
[354543980,1740565832763,-500.0,0.00052999,120]
[354543981,1740565832772,-500.0,0.00052999,120]
[354543982,1740565832782,-7888.79185798,0.00053,120]
[354543994,1740565837795,-1531.11346,0.00053,120]
[354544052,1740565842813,-591.49045978,0.00053,120]
[354544053,1740565842857,-1241.0,0.00053,120]
[354544054,1740565842868,-1392.33,0.00053,120]
[354544072,1740565846005,-890.24,0.00053,120]
[354544135,1740567032050,-300.0,0.00025199,2]
[354544137,1740567032060,-14825.77974187,0.000252,4]
[354544207,1740567037801,-14185.41126696,0.000252,4]
[354544217,1740567037895,-1058.03500531,0.000252,4]
[354544219,1740567037907,-60000.0,0.000252,4]
[354544292,1740567040158,-46909.999994,0.000252,4]
[354544357,1740567043046,-368.70608664,0.000252,4]
[354544421,1740567187814,-160.054,0.0003608,44]
[354544422,1740567187838,-171.63809694,0.0003608,44]
[354544423,1740567187862,-588.41459732,0.000435,60]
[354544424,1740567187884,-159.899999,0.00044,120]
[354544425,1740567187911,-890.07,0.000488,45]
[354544426,1740567187936,-890.07,0.000488,45]
[354544427,1740567187961,-890.07,0.000488,45]
[354544428,1740567187986,-890.07,0.000488,45]
[354544429,1740567188012,-890.07,0.000488,45]
[354544430,1740567188036,-890.07,0.000488,45]
[354544431,1740567188062,-890.07,0.000488,45]
[354544432,1740567188087,-890.07,0.000488,45]
[354544433,1740567188116,-890.07,0.000488,45]
[354544434,1740567188144,-890.07,0.000488,45]
[354544435,1740567188170,-890.07,0.000488,45]
[354544436,1740567188195,-890.07,0.000488,45]
[354544437,1740567188219,-500.0,0.00049999,120]
[354544438,1740567188245,-500.0,0.00049999,120]
[354544439,1740567188270,-500.0,0.00049999,120]
[354544440,1740567188295,-500.0,0.00049999,120]
[354544441,1740567188321,-500.0,0.00049999,120]
[354544442,1740567188348,-500.0,0.00049999,120]
[354544443,1740567188374,-500.0,0.00049999,120]
[354544444,1740567188398,-500.0,0.00049999,120]
[354544445,1740567188422,-500.0,0.00049999,120]
[354544446,1740567188446,-500.0,0.00049999,120]
[354544447,1740567188470,-500.0,0.00049999,120]
[354544448,1740567188495,-500.0,0.00049999,120]
[354544449,1740567188518,-500.0,0.00049999,120]
[354544450,1740567188542,-208.36343283,0.00049999,120]
[354544451,1740567188565,-500.0,0.00049999,120]
[354544452,1740567188589,-500.0,0.00049999,120]
[354544453,1740567188612,-500.0,0.00049999,120]
[354544454,1740567188636,-500.0,0.00049999,120]
[354544455,1740567188660,-600.0,0.00049999,120]
[354544456,1740567188683,-550.0,0.0005,60]
[354544457,1740567188705,-333647.80650084,0.0005,120]
[354544458,1740567188728,-5223.12,0.0005,30]
[354544459,1740567188752,-19603.87691479,0.0005,120]
[354544460,1740567188775,-190.12,0.0005,30]
[354544461,1740567188798,-223.67677238,0.00051961,44]
[354544462,1740567188820,-339.9946506,0.00052004,30]
[354544463,1740567188843,-153.0,0.00052004,30]
[354544464,1740567188866,-153.0,0.00052004,30]
[354544465,1740567188890,-154.8331553,0.00052004,30]
[354544466,1740567188914,-154.8331553,0.00052801,30]
[354544467,1740567188937,-500.0,0.00052999,120]
[354544468,1740567188961,-500.0,0.00052999,120]
[354544469,1740567188984,-171.99721823,0.00052999,120]
[354544470,1740567189008,-500.0,0.00052999,31]
[354544471,1740567189032,-500.0,0.00052999,120]
[354544472,1740567189057,-524.09877047,0.00052999,31]
[354544473,1740567189203,-500.0,0.00052999,120]
[354544474,1740567189230,-500.0,0.00052999,120]
[354544475,1740567189254,-500.0,0.00052999,31]
[354544476,1740567189279,-197.11108237,0.00052999,120]
[354544477,1740567189305,-500.0,0.00052999,120]
[354544478,1740567189328,-10050.44635811,0.00053,120]
[354544479,1740567189354,-13826.0677532,0.00053,60]
[354544480,1740567189377,-136467.16133824,0.00053,120]
[354544481,1740567189402,-153.632781,0.00053,120]
[354544482,1740567189426,-151.0,0.00053,120]
[354544483,1740567189449,-151.0,0.00053,120]
[354544484,1740567189475,-151.0,0.00053,120]
[354544485,1740567189498,-183.702969,0.00053,120]
[354544486,1740567189523,-151.0,0.00053,120]
[354544487,1740567189546,-151.0,0.00053,120]
[354544488,1740567189569,-151.0,0.00053,120]
[354544489,1740567189592,-151.0,0.00053,120]
[354544490,1740567189616,-151.0,0.00053,120]
[354544491,1740567189640,-151.0,0.00053,120]
[354544492,1740567189664,-162.613457,0.00053,120]
[354544493,1740567189688,-152.365122,0.00053,120]
[354544494,1740567189711,-151.0,0.00053,120]
[354544495,1740567189734,-151.0,0.00053,30]
[354544496,1740567189757,-151.0,0.00053,120]
[354544497,1740567189781,-151.236011,0.00053,120]
[354544498,1740567189804,-151.0,0.00053,120]
[354544499,1740567189827,-151.0,0.00053,120]
[354544500,1740567189850,-151.0,0.00053,120]
[354544501,1740567189874,-151.0,0.00053,120]
[354544502,1740567189898,-151.0,0.00053,120]
[354544503,1740567189923,-175.461755,0.00054001,120]
[354544504,1740567189949,-151.0,0.00054001,120]
[354544505,1740567189972,-151.0,0.00054001,120]
[354544506,1740567189996,-151.0,0.00054001,120]
[354544507,1740567190021,-151.0,0.00054001,120]
[354544508,1740567190047,-151.0,0.00054001,120]
[354544509,1740567190070,-151.0,0.00054001,120]
[354544510,1740567190093,-247.714306,0.00054001,30]
[354544511,1740567190118,-151.0,0.00054001,120]
[354544512,1740567190142,-151.0,0.00054001,120]
[354544513,1740567190169,-151.0,0.00054001,120]
[354544514,1740567190194,-151.0,0.00054001,120]
[354544515,1740567190218,-151.0,0.00054001,120]
[354544516,1740567190242,-151.0,0.00054001,120]
[354544517,1740567190266,-151.0,0.00054001,120]
[354544518,1740567190289,-151.0,0.00054001,120]
[354544519,1740567190313,-151.0,0.00054001,120]
[354544520,1740567190337,-451.245,0.00054274,120]
[354544521,1740567190360,-1391.0,0.0005456,120]
[354544522,1740567190383,-160.054,0.0005456,103]
[354544523,1740567190406,-5146.488558,0.000546,120]
[354544524,1740567190429,-3000.0,0.00054694,120]
[354544525,1740567190452,-151.0,0.00054694,120]
[354544526,1740567190476,-151.221897,0.0005477,120]
[354544527,1740567190499,-154.047082,0.0005477,120]
[354544528,1740567190522,-151.0,0.0005477,120]
[354544529,1740567190546,-151.0,0.0005477,120]
[354544530,1740567190569,-151.0,0.0005477,120]
[354544531,1740567190593,-151.0,0.0005477,120]
[354544532,1740567190616,-151.0,0.0005477,120]
[354544533,1740567190640,-151.0,0.0005477,120]
[354544534,1740567190664,-151.0,0.0005477,120]
[354544535,1740567190688,-151.0,0.0005477,120]
[354544536,1740567190711,-214.56852,0.0005477,120]
[354544537,1740567190734,-151.0,0.0005477,120]
[354544538,1740567190758,-151.0,0.0005477,120]
[354544539,1740567190780,-151.0,0.0005477,120]
[354544540,1740567190804,-151.0,0.0005477,120]
[354544541,1740567190829,-466.82132016,0.00054794,120]
[354544542,1740567190852,-500.0,0.00054794,120]
[354544543,1740567190874,-500.0,0.00054794,120]
[354544544,1740567190898,-503.06981649,0.00054794,120]
[354544545,1740567190921,-502.13034368,0.00054794,120]
[354544546,1740567190945,-502.31503567,0.00054794,120]
[354544547,1740567190968,-500.0,0.00054794,120]
[354544548,1740567190992,-500.0,0.00054794,120]
[354544549,1740567191015,-500.0,0.00054794,120]
[354544550,1740567191038,-500.0,0.00054794,120]
[354544551,1740567191062,-500.0,0.00054794,120]
[354544552,1740567191085,-500.0,0.00054794,120]
[354544553,1740567191113,-500.0,0.00054794,120]
[354544554,1740567191137,-500.0,0.00054794,120]
[354544555,1740567191162,-501.29319513,0.00054794,120]
[354544556,1740567191187,-476.26853001,0.00054794,120]
[354544557,1740567191209,-501.54256241,0.00054794,120]
[354544558,1740567191232,-500.0,0.00054794,120]
[354544559,1740567191256,-500.0,0.00054794,120]
[354544560,1740567191282,-502.82237466,0.00054794,120]
[354544561,1740567191305,-500.0,0.00054794,120]
[354544562,1740567191328,-500.0,0.00054794,120]
[354544563,1740567191351,-500.0,0.00054794,120]
[354544564,1740567191373,-500.0,0.00054794,120]
[354544565,1740567191397,-500.0,0.00054794,120]
[354544566,1740567191419,-500.0,0.00054794,120]
[354544567,1740567191443,-501.12096867,0.00054794,120]
[354544568,1740567191564,-500.0,0.00054794,120]
[354544569,1740567191587,-468.69413174,0.00054794,120]
[354544570,1740567191611,-500.0,0.00054794,120]
[354544571,1740567191634,-502.37737784,0.00054794,120]
[354544572,1740567191657,-169.16879106,0.00054794,120]
[354544573,1740567191679,-500.0,0.00054794,120]
[354544574,1740567191702,-500.0,0.00054794,120]
[354544575,1740567191725,-500.0,0.00054794,120]
[354544576,1740567191749,-500.0,0.00054794,120]
[354544577,1740567191772,-500.94071282,0.00054794,120]
[354544578,1740567191795,-500.0,0.00054794,120]
[354544579,1740567191818,-500.0,0.00054794,120]
[354544580,1740567191842,-500.0,0.00054794,120]
[354544581,1740567191865,-500.0,0.00054794,120]
[354544582,1740567191888,-500.0,0.00054794,120]
[354544583,1740567191912,-500.0,0.00054794,120]
[354544584,1740567191934,-500.85429079,0.00054794,120]
[354544585,1740567191956,-500.0,0.00054794,120]
[354544586,1740567191979,-500.0,0.00054794,120]
[354544587,1740567192002,-500.0,0.00054794,120]
[354544588,1740567192025,-500.0,0.00054794,120]
[354544589,1740567192047,-500.0,0.00054794,120]
[354544590,1740567192071,-500.0,0.00054794,120]
[354544591,1740567192096,-500.0,0.00054794,120]
[354544592,1740567192119,-500.0,0.00054794,120]
[354544593,1740567192142,-500.0,0.00054794,120]
[354544594,1740567192165,-500.0,0.00054794,120]
[354544595,1740567192188,-493.89617248,0.00054794,120]
[354544596,1740567192211,-500.0,0.00054794,120]
[354544597,1740567192234,-500.0,0.00054794,120]
[354544598,1740567192258,-509.64593831,0.00054794,120]
[354544599,1740567192280,-500.0,0.00054794,120]
[354544600,1740567192304,-500.0,0.00054794,120]
[354544601,1740567192328,-500.0,0.00054794,120]
[354544602,1740567192352,-506.62491005,0.00054794,120]
[354544603,1740567192375,-500.0,0.00054794,120]
[354544604,1740567192398,-500.0,0.00054794,120]
[354544605,1740567192422,-500.0,0.00054794,120]
[354544606,1740567192446,-500.0,0.00054794,120]
[354544607,1740567192469,-500.0,0.00054794,120]
[354544608,1740567192492,-500.0,0.00054794,120]
[354544609,1740567192517,-500.0,0.00054794,120]
[354544610,1740567192542,-499.70827411,0.00054794,120]
[354544611,1740567265648,-467.96904093,0.00041366,15]
[354544612,1740567265672,-270.26566065,0.0004731,10]
[354544613,1740567265696,-500.0,0.0004731,10]
[354544614,1740567265721,-500.0,0.0004731,10]
[354544615,1740567265746,-649.55008775,0.000474,10]
[354544616,1740567265770,-190.11,0.000491,30]
[354544617,1740567265794,-8555.05298051,0.000499,120]
[354544618,1740567265819,-242.12735917,0.0005216,10]
[354544619,1740567265843,-339.9946506,0.00052801,30]
[354544620,1740567265866,-309.6663106,0.00052801,30]
[354544621,1740567265889,-153.0,0.00052801,30]
[354544622,1740567265912,-153.0,0.00052801,30]
[354544623,1740567265935,-500.0,0.00052973,7]
[354544624,1740567265958,-500.0,0.00052973,10]
[354544625,1740567265981,-576.88811537,0.00052973,10]
[354544626,1740567266005,-500.0,0.00052973,10]
[354544627,1740567266028,-201.59916547,0.00052999,120]
[354544628,1740567266053,-500.0,0.00052999,120]
[354544629,1740567266078,-309.13332471,0.00052999,120]
[354544630,1740567266102,-151.0,0.00053,120]
[354544631,1740567266129,-151.0,0.00053,120]
[354544632,1740567266153,-1000.0,0.00053521,7]
[354544633,1740567266179,-5025.22317906,0.00054,120]
[354544634,1740567266206,-6913.0338766,0.00054,60]
[354544635,1740567266232,-1500.0,0.00054068,7]
[354544636,1740567266256,-2000.0,0.00054616,7]
[354544637,1740567266283,-3000.0,0.00054694,120]
[354544638,1740567266308,-500.0,0.00054773,10]
[354544639,1740567266332,-502.68886795,0.00054773,10]
[354544640,1740567266358,-500.0,0.00054773,10]
[354544641,1740567266382,-500.0,0.00054794,10]
[354544642,1740567266407,-500.0,0.00054794,7]
[354544643,1740567266432,-0.29172589,0.00054794,120]
[354544644,1740567266457,-500.0,0.00054794,120]
[354544645,1740567266481,-500.0,0.00054794,120]
[354544646,1740567266505,-500.0,0.00054794,120]
[354544647,1740567266529,-500.0,0.00054794,120]
[354544648,1740567266553,-500.0,0.00054794,120]
[354544649,1740567266577,-500.0,0.00054794,120]
[354544650,1740567266601,-500.0,0.00054794,30]
[354544651,1740567266624,-500.0,0.00054794,120]
[354544652,1740567266649,-500.0,0.00054794,120]
[354544653,1740567266673,-323.30390435,0.00054794,120]
[354544654,1740567266698,-500.0,0.00054794,120]
[354544655,1740567266722,-500.0,0.00054794,120]
[354544656,1740567266746,-500.0,0.00054794,120]
[354544657,1740567266770,-500.0,0.00054794,120]
[354544658,1740567266794,-500.0,0.00054794,120]
[354544659,1740567266819,-500.0,0.00054794,120]
[354544660,1740567266842,-500.0,0.00054794,120]
[354544661,1740567266865,-500.0,0.00054794,120]
[354544662,1740567266889,-500.0,0.00054794,120]
[354544663,1740567266913,-500.97314733,0.00054794,120]
[354544664,1740567266938,-500.0,0.00054794,120]
[354544665,1740567266962,-500.0,0.00054794,120]
[354544666,1740567266986,-500.0,0.00054794,120]
[354544667,1740567267010,-253.31826631,0.00054794,120]
[354544668,1740567267034,-500.0,0.00054794,120]
[354544669,1740567267058,-500.0,0.00054794,120]
[354544670,1740567267082,-500.0,0.00054794,120]
[354544671,1740567267106,-500.0,0.00054794,120]
[354544672,1740567267133,-500.0,0.00054794,120]
[354544673,1740567267156,-500.0,0.00054794,120]
[354544674,1740567267181,-500.0,0.00054794,120]
[354544675,1740567267205,-500.0,0.00054794,120]
[354544676,1740567267235,-500.0,0.00054794,120]
[354544677,1740567267259,-526.23688914,0.00054794,120]
[354544678,1740567267284,-503.82539058,0.00054794,120]
[354544679,1740567267309,-248.21317511,0.00054794,120]
[354544680,1740567267334,-510.36488558,0.00054794,30]
[354544681,1740567267358,-500.0,0.00054794,120]
[354544682,1740567267382,-500.0,0.00054794,120]
[354544683,1740567267406,-500.0,0.00054794,120]
[354544684,1740567267429,-500.0,0.00054794,120]
[354544685,1740567267452,-500.0,0.00054794,120]
[354544686,1740567267480,-500.0,0.00054794,120]
[354544687,1740567267503,-500.0,0.00054794,120]
[354544688,1740567267526,-500.0,0.00054794,120]
[354544689,1740567267657,-500.0,0.00054794,120]
[354544690,1740567267683,-501.35842845,0.00054794,120]
[354544691,1740567267706,-288.88323367,0.00054794,120]
[354544692,1740567267731,-500.0,0.00054794,120]
[354544693,1740567267753,-500.0,0.00054794,120]
[354544694,1740567267775,-500.0,0.00054794,120]
[354544695,1740567267798,-500.0,0.00054794,120]
[354544696,1740567267821,-560.5648347,0.00054794,120]
[354544697,1740567267845,-500.0,0.00054794,120]
[354544698,1740567267868,-500.0,0.00054794,120]
[354544699,1740567267891,-500.0,0.00054794,120]
[354544700,1740567267914,-500.0,0.00054794,120]
[354544701,1740567267938,-500.0,0.00054794,120]
[354544702,1740567267961,-500.0,0.00054794,120]
[354544703,1740567267986,-500.0,0.00054794,120]
[354544704,1740567268016,-500.0,0.00054794,120]
[354544705,1740567268043,-151.0,0.00054794,120]
[354544706,1740567268068,-151.0,0.00054794,120]
[354544707,1740567268091,-151.0,0.00054794,120]
[354544708,1740567268117,-151.0,0.00054794,120]
[354544709,1740567268143,-154.853155,0.00054794,120]
[354544710,1740567268168,-500.0,0.00054794,120]
[354544711,1740567268193,-500.0,0.00054794,120]
[354544712,1740567268222,-500.0,0.00054794,120]
[354544713,1740567268246,-500.0,0.00054794,120]
[354544714,1740567268271,-500.0,0.00054794,120]
[354544715,1740567268297,-294.418887,0.00054794,120]
[354544716,1740567268323,-500.0,0.00054794,120]
[354544717,1740567268347,-500.0,0.00054794,120]
[354544718,1740567268370,-2161.18,0.00054794,120]
[354544719,1740567268392,-501.11836703,0.00054794,120]
[354544720,1740567268416,-501.3838639,0.00054794,120]
[354544721,1740567268438,-500.0,0.00054794,120]
[354544722,1740567268464,-500.0,0.00054794,120]
[354544723,1740567268489,-500.0,0.00054794,120]
[354544724,1740567268514,-635.48991678,0.00054794,120]
[354544725,1740567268541,-500.0,0.00054794,120]
[354544726,1740567268567,-503.18491287,0.00054794,120]
[354544727,1740567268592,-500.0,0.00054794,120]
[354544728,1740567268616,-500.0,0.00054794,120]
[354544729,1740567268639,-500.0,0.00054794,120]
[354544730,1740567268665,-500.0,0.00054794,120]
[354544731,1740567268689,-611.93518882,0.00054794,120]
[354544732,1740567268715,-500.0,0.00054794,120]
[354544733,1740567268742,-500.0,0.00054794,120]
[354544734,1740567268767,-500.0,0.00054794,120]
[354544735,1740567268791,-500.0,0.00054794,120]
[354544736,1740567268814,-536.38930715,0.00054794,120]
[354544737,1740567268838,-500.0,0.00054794,120]
[354544738,1740567268864,-500.0,0.00054794,120]
[354544739,1740567268888,-500.0,0.00054794,120]
[354544740,1740567268916,-502.13170062,0.00054794,120]
[354544741,1740567268942,-420.02369397,0.00054794,120]
[354544742,1740567268968,-151.0,0.00054794,120]
[354544743,1740567268996,-151.0,0.00054794,120]
[354544744,1740567269021,-508.40878413,0.00054794,120]
[354544745,1740567269046,-151.0,0.00054794,120]
[354544746,1740567269072,-151.0,0.00054794,120]
[354544747,1740567269096,-151.0,0.00054794,120]
[354544748,1740567269123,-151.0,0.00054794,120]
[354544749,1740567269151,-500.0,0.00054794,120]
[354544750,1740567269177,-505.13162618,0.00054794,120]
[354544751,1740567269204,-512.02750273,0.00054794,120]
[354544752,1740567269230,-500.0,0.00054794,120]
[354544753,1740567269257,-500.0,0.00054794,120]
[354544754,1740567269281,-500.0,0.00054794,120]
[354544755,1740567269306,-500.0,0.00054794,120]
[354544756,1740567269332,-500.0,0.00054794,120]
[354544757,1740567269355,-500.0,0.00054794,120]
[354544758,1740567269378,-500.0,0.00054794,120]
[354544759,1740567269401,-571.3225437,0.00054794,120]
[354544760,1740567269426,-500.0,0.00054794,120]
[354544761,1740567269450,-500.0,0.00054794,120]
[354544762,1740567269476,-500.0,0.00054794,120]
[354544763,1740567269501,-500.0,0.00054794,120]
[354544764,1740567269527,-500.0,0.00054794,120]
[354544765,1740567269551,-500.0,0.00054794,120]
[354544766,1740567269575,-500.0,0.00054794,120]
[354544767,1740567269600,-500.0,0.00054794,120]
[354544768,1740567269624,-500.0,0.00054794,120]
[354544769,1740567269647,-500.0,0.00054794,120]
[354544770,1740567269671,-500.0,0.00054794,120]
[354544771,1740567269696,-500.0,0.00054794,120]
[354544772,1740567269722,-500.0,0.00054794,120]
[354544773,1740567269747,-500.0,0.00054794,120]
[354544774,1740567269772,-500.0,0.00054794,120]
[354544775,1740567269797,-500.0,0.00054794,120]
[354544776,1740567269823,-500.0,0.00054794,120]
[354544777,1740567269847,-500.0,0.00054794,120]
[354544778,1740567269873,-515.01,0.00054794,120]
[354544779,1740567269900,-500.0,0.00054794,120]
[354544780,1740567269925,-500.0,0.00054794,120]
[354544781,1740567269950,-500.0,0.00054794,120]
[354544782,1740567269976,-500.0,0.00054794,120]
[354544783,1740567270000,-500.0,0.00054794,120]
[354544784,1740567270025,-500.0,0.00054794,120]
[354544785,1740567270051,-500.0,0.00054794,120]
[354544786,1740567270180,-500.0,0.00054794,120]
[354544787,1740567270204,-500.0,0.00054794,120]
[354544788,1740567270229,-500.0,0.00054794,120]
[354544789,1740567270253,-500.0,0.00054794,120]
[354544790,1740567270277,-500.0,0.00054794,120]
[354544791,1740567270302,-500.0,0.00054794,120]
[354544792,1740567270327,-500.0,0.00054794,120]
[354544793,1740567270352,-500.0,0.00054794,120]
[354544794,1740567270375,-500.0,0.00054794,120]
[354544795,1740567270399,-500.0,0.00054794,120]
[354544796,1740567270423,-500.0,0.00054794,120]
[354544797,1740567270448,-507.69455695,0.00054794,120]
[354544798,1740567270474,-500.0,0.00054794,120]
[354544799,1740567270498,-500.0,0.00054794,120]
[354544800,1740567270524,-500.0,0.00054794,120]
[354544801,1740567270548,-500.0,0.00054794,120]
[354544802,1740567270574,-508.23802379,0.00054794,120]
[354544803,1740567270598,-500.0,0.00054794,120]
[354544804,1740567270622,-511.19324518,0.00054794,120]
[354544805,1740567270647,-500.0,0.00054794,120]
[354544806,1740567270670,-500.0,0.00054794,120]
[354544807,1740567270694,-500.0,0.00054794,120]
[354544808,1740567270718,-500.0,0.00054794,20]
[354544809,1740567270743,-500.0,0.00054794,20]
[354544810,1740567270767,-500.0,0.00054794,20]
[354544811,1740567270792,-500.0,0.00054794,120]
[354544812,1740567270816,-500.0,0.00054794,20]
[354544813,1740567270840,-501.77240154,0.00054794,120]
[354544814,1740567270864,-500.0,0.00054794,20]
[354544815,1740567270888,-500.0,0.00054794,30]
[354544816,1740567270911,-500.0,0.00054794,20]
[354544817,1740567270935,-500.0,0.00054794,20]
[354544818,1740567270959,-500.0,0.00054794,120]
[354544819,1740567270984,-500.0,0.00054794,120]
[354544820,1740567271008,-500.0,0.00054794,120]
[354544821,1740567271032,-500.0,0.00054794,120]
[354544822,1740567271056,-504.82543478,0.00054794,120]
[354544823,1740567271080,-500.0,0.00054794,120]
[354544824,1740567271104,-500.0,0.00054794,120]
[354544825,1740567271130,-500.0,0.00054794,120]
[354544826,1740567271154,-500.0,0.00054794,120]
[354544827,1740567271180,-500.0,0.00054794,120]
[354544828,1740567271204,-500.0,0.00054794,120]
[354544829,1740567271230,-500.0,0.00054794,120]
[354544830,1740567271255,-500.0,0.00054794,120]
[354544831,1740567271280,-500.0,0.00054794,120]
[354544832,1740567271303,-500.0,0.00054794,120]
[354544833,1740567271326,-501.77516977,0.00054794,120]
[354544834,1740567271350,-500.0,0.00054794,120]
[354544835,1740567271374,-500.0,0.00054794,120]
[354544836,1740567271398,-500.0,0.00054794,120]
[354544837,1740567271422,-500.0,0.00054794,120]
[354544838,1740567271445,-500.0,0.00054794,120]
[354544839,1740567271470,-500.0,0.00054794,120]
[354544840,1740567271494,-500.0,0.00054794,120]
[354544841,1740567271518,-196.4427872,0.00054794,120]
[354544842,1740567271541,-500.0,0.00054794,120]
[354544843,1740567271564,-500.0,0.00054794,120]
[354544844,1740567271588,-500.0,0.00054794,120]
[354544845,1740567271612,-500.0,0.00054794,120]
[354544846,1740567271634,-500.0,0.00054794,120]
[354544847,1740567271658,-500.0,0.00054794,120]
[354544848,1740567271682,-500.0,0.00054794,120]
[354544849,1740567271706,-501.05944997,0.00054794,120]
[354544850,1740567271730,-500.0,0.00054794,120]